[Event "GER-chT Youth Countries 2020"]
[Site "Berlin"]
[Date "2020.10.02"]
[Round "4"]
[White "Lorenz, Veronika"]
[Black "Fischer, Juliane"]
[Result "0-1"]
[ECO "B21"]
[WhiteElo "1273"]
[BlackElo "1509"]
[Annotator "NA"]
[PlyCount "111"]
[EventDate "2020.09.30"]
[EventType "team-tourn"]
[EventRounds "7"]
[EventCountry "GER"]
[SourceTitle "playchess.com"]
[Source "ChessBase"]
[SourceQuality "1"]
[TimeControl "30/5400+30:0"]

1. e4 {[%emt 0:00:00]} c5 {[%emt 0:00:00]} 2. d4 {[%emt 0:05:06]} cxd4 {[%emt 0:00:00]} 3. c3 {[%emt 0:00:05]} Nf6 {[%emt 0:00:10]} 4. e5 {[%emt 0:00:40]} Nd5 {[%emt 0:00:13]} 5. cxd4 {[%emt 0:00:43]} e6 {[%emt 0:00:11]} 6. Bc4 {[%emt 0:05:13]} d6 {[%emt 0:02:33]} 7. Nf3 {[%emt 0:10:10]} Nd7 {[%emt 0:02:11]} 8. O-O {[%emt 0:02:31]} b6 {[%emt 0:04:07]} 9. Bxd5 {[%emt 0:02:45]} exd5 {[%emt 0:00:17]} 10. Re1 {[%emt 0:00:32]} dxe5 {[%emt 0:01:00]} 11. Nxe5 {[%emt 0:01:20]} Be7 {[%emt 0:00:29]} 12. Bg5 {[%emt 0:08:15]} Nxe5 {[%emt 0:19:13]} 13. Bxe7 {[%emt 0:00:44]} Qxe7 {[%emt 0:00:24]} 14. Rxe5 {[%emt 0:00:08]} Be6 {[%emt 0:00:05]} 15. f4 {[%emt 0:02:15]} Qb4 {[%emt 0:05:57]} 16. Nc3 {[%emt 0:13:17]} Qxb2 {[%emt 0:05:01]} 17. f5 {[%emt 0:11:29]} Qxc3 {[%emt 0:01:15]} 18. Rc1 {[%emt 0:00:49]} Qa3 {[%emt 0:02:17]} 19. fxe6 {[%emt 0:00:28]} fxe6 {[%emt 0:00:28]} 20. Rxe6+ {[%emt 0:00:25]} Kf7 {[%emt 0:00:58]} 21. Re5 {[%emt 0:11:51]} Rhc8 {[%emt 0:04:24]} 22. Qh5+ {[%emt 0:06:20]} Kg8 {[%emt 0:03:17]} 23. Rf1 {[%emt 0:02:08]} Rf8 {[%emt 0:02:17]} 24. Rxf8+ {[%emt 0:03:13]} Rxf8 {[%emt 0:00:09]} 25. Qg5 {[%emt 0:03:10]} Qd3 {[%emt 0:01:09]} 26. h3 {[%emt 0:00:46]} Qxd4+ {[%emt 0:02:56]} 27. Kh2 {[%emt 0:00:18]} Qf4+ {[%emt 0:07:14]} 28. Qxf4 {[%emt 0:00:09]} Rxf4 {[%emt 0:00:03]} 29. Rxd5 {[%emt 0:00:12]} Ra4 {[%emt 0:00:38]} 30. Rd2 {[%emt 0:00:15]} Ra6 {[%emt 0:01:31]} 31. Rf2 {[%emt 1:30:47]} b5 {[%emt 1:30:16]} 32. Kg3 {[%emt 0:00:31]} Rg6+ {[%emt 0:00:19]} 33. Kf3 {[%emt 0:00:09]} Rf6+ {[%emt 0:00:08]} 34. Ke3 {[%emt 0:00:13]} Rxf2 {[%emt 0:00:12]} 35. Kxf2 {[%emt 0:00:04]} Kf7 {[%emt 0:00:11]} 36. Ke3 {[%emt 0:00:11]} Ke6 {[%emt 0:00:06]} 37. Ke4 {[%emt 0:00:22]} a5 {[%emt 0:00:15]} 38. Kd4 {[%emt 0:00:14]} Kd6 {[%emt 0:00:06]} 39. a3 {[%emt 0:00:19]} b4 {[%emt 0:00:10]} 40. axb4 {[%emt 0:00:15]} axb4 {[%emt 0:00:07]} 41. Kc4 {[%emt 0:00:15]} Ke5 {[%emt 0:00:17]} 42. Kxb4 {[%emt 0:02:25]} Kf4 {[%emt 0:00:08]} 43. h4 {[%emt 0:01:27]} Kg4 {[%emt 0:00:12]} 44. g3 {[%emt 0:01:06]} Kxg3 {[%emt 0:00:07]} 45. h5 {[%emt 0:00:06]} Kg4 {[%emt 0:00:07]} 46. h6 {[%emt 0:00:24]} g6 {[%emt 0:00:40]} 47. Kc4 {[%emt 0:00:22]} Kh5 {[%emt 0:00:07]} 48. Kd4 {[%emt 0:00:04]} Kxh6 {[%emt 0:00:10]} 49. Ke3 {[%emt 0:00:15]} g5 {[%emt 0:00:14]} 50. Kf3 {[%emt 0:00:05]} Kg6 {[%emt 0:00:07]} 51. Kg4 {[%emt 0:00:07]} h5+ {[%emt 0:00:08]} 52. Kg3 {[%emt 0:00:07]} Kf5 {[%emt 0:00:13]} 53. Kf3 {[%emt 0:00:12]} h4 {[%emt 0:00:16]} 54. Kg2 {[%emt 0:00:07]} g4 {[%emt 0:00:08]} 55. Kh2 {[%emt 0:00:17]} Kf4 {[%emt 0:00:06]} 56. Kg2 {[%emt 0:00:07]} 0-1

[Event "GER-chT Youth Countries 2020"]
[Site "Berlin"]
[Date "2020.10.02"]
[Round "4"]
[White "Schwenke, Mia"]
[Black "Richter, Johanna"]
[Result "0-1"]
[ECO "B34"]
[WhiteElo "1265"]
[BlackElo "1107"]
[Annotator "NA"]
[PlyCount "86"]
[EventDate "2020.09.30"]
[EventType "team-tourn"]
[EventRounds "7"]
[EventCountry "GER"]
[SourceTitle "playchess.com"]
[Source "ChessBase"]
[SourceQuality "1"]
[TimeControl "30/5400+30:0"]

1. e4 {[%emt 0:00:00]} c5 {[%emt 0:00:00]} 2. Nf3 {[%emt 0:00:00]} Nc6 {[%emt 0:00:00]} 3. d4 {[%emt 0:00:00]} cxd4 {[%emt 0:00:00]} 4. Nxd4 {[%emt 0:00:00]} Nf6 {[%emt 0:00:01]} 5. Nc3 {[%emt 0:00:09]} e5 {[%emt 0:00:11]} 6. Nxc6 {[%emt 0:03:56]} bxc6 {[%emt 0:00:24]} 7. Bc4 {[%emt 0:01:33]} Be7 {[%emt 0:02:10]} 8. f3 {[%emt 0:05:12]} Bc5 {[%emt 0:02:24]} 9. Bb3 {[%emt 0:12:24]} Bb7 {[%emt 0:03:42]} 10. Na4 {[%emt 0:04:15]} Be7 {[%emt 0:01:17]} 11. Be3 {[%emt 0:01:34]} O-O {[%emt 0:00:34]} 12. Qd2 {[%emt 0:00:55]} d5 {[%emt 0:01:15]} 13. exd5 {[%emt 0:02:03]} cxd5 {[%emt 0:00:34]} 14. Bc5 {[%emt 0:03:44]} Bxc5 {[%emt 0:06:15]} 15. Nxc5 {[%emt 0:00:09]} Bc6 {[%emt 0:01:49]} 16. O-O-O {[%emt 0:01:08]} d4 {[%emt 0:05:27]} 17. Rhe1 {[%emt 0:07:35]} Re8 {[%emt 0:02:24]} 18. Qd3 {[%emt 0:02:45]} Rb8 {[%emt 0:02:17]} 19. Ne4 {[%emt 0:07:00]} Nd5 {[%emt 0:01:05]} 20. Bxd5 {[%emt 0:03:18]} Bxd5 {[%emt 0:00:42]} 21. b3 {[%emt 0:04:23]} Qe7 {[%emt 0:01:15]} 22. Kb2 {[%emt 0:02:23]} Qb4 {[%emt 0:01:44]} 23. a3 {[%emt 0:03:57]} Qb6 {[%emt 0:02:54]} 24. Rd2 {[%emt 0:10:58]} Qc6 {[%emt 0:01:32]} 25. Ka2 {[%emt 0:03:05]} a5 {[%emt 0:00:45]} 26. a4 {[%emt 0:01:42]} Qxa4+ {[%emt 0:00:15]} 27. Kb2 {[%emt 0:01:22]} Bc4 {[%emt 0:00:11]} 28. Nc5 {[%emt 0:03:47]} Qb4 {[%emt 0:02:01]} 29. c3 {[%emt 0:05:00]} Qb5 {[%emt 0:01:43]} 30. Qc2 {[%emt 0:02:33]} a4 {[%emt 0:00:39]} 31. Nxa4 {[%emt 1:30:45]} Qxa4 {[%emt 1:30:28]} 32. b4 {[%emt 0:01:12]} dxc3+ {[%emt 0:01:03]} 33. Qxc3 {[%emt 0:02:04]} Rxb4+ {[%emt 0:01:45]} 34. Kc1 {[%emt 0:00:38]} Rb3 {[%emt 0:01:23]} 35. Qxb3 {[%emt 0:01:34]} Bxb3 {[%emt 0:00:27]} 36. Rd3 {[%emt 0:01:12]} Rc8+ {[%emt 0:00:38]} 37. Kd2 {[%emt 0:00:14]} Qf4+ {[%emt 0:00:24]} 38. Ke2 {[%emt 0:00:34]} Rc2+ {[%emt 0:00:18]} 39. Kf1 {[%emt 0:00:29]} Bc4 {[%emt 0:00:09]} 40. Ra1 {[%emt 0:01:31]} g6 {[%emt 0:00:28]} 41. Rad1 {[%emt 0:00:38]} Bxd3+ {[%emt 0:00:13]} 42. Kg1 {[%emt 0:00:28]} Qe3+ {[%emt 0:00:19]} 43. Kh1 {[%emt 0:00:14]} Rc1 {[%emt 0:00:27]} 0-1

[Event "GER-chT Youth Countries 2020"]
[Site "Berlin"]
[Date "2020.10.02"]
[Round "4"]
[White "Bako, Evelin"]
[Black "Chassard, Cecilia"]
[Result "1-0"]
[ECO "C44"]
[WhiteElo "1192"]
[BlackElo "980"]
[Annotator "NA"]
[PlyCount "139"]
[EventDate "2020.09.30"]
[EventType "team-tourn"]
[EventRounds "7"]
[EventCountry "GER"]
[SourceTitle "playchess.com"]
[Source "ChessBase"]
[SourceQuality "1"]
[TimeControl "30/5400+30:0"]

1. e4 e5 2. Nf3 Nc6 3. c3 Nf6 4. d4 d6 5. Bb5 {[%emt 0:05:06]} Bg4 {[%emt 0:03:55]} 6. d5 {[%emt 0:01:38]} a6 {[%emt 0:01:18]} 7. Bxc6+ {[%emt 0:01:33]} bxc6 {[%emt 0:00:12]} 8. Bg5 {[%emt 0:01:52]} Be7 {[%emt 0:00:33]} 9. Bxf6 {[%emt 0:00:32]} Bxf6 {[%emt 0:00:06]} 10. dxc6 {[%emt 0:00:19]} O-O {[%emt 0:00:56]} 11. O-O {[%emt 0:00:55]} Qe8 {[%emt 0:01:16]} 12. h3 {[%emt 0:01:39]} Bh5 {[%emt 0:00:21]} 13. g4 {[%emt 0:03:06]} Bg6 {[%emt 0:01:15]} 14. Qd5 {[%emt 0:02:08]} Qe6 {[%emt 0:00:51]} 15. Nbd2 {[%emt 0:02:10]} Rab8 {[%emt 0:00:59]} 16. b3 {[%emt 0:02:02]} Rb5 {[%emt 0:02:29]} 17. Qd3 {[%emt 0:02:46]} Rb6 {[%emt 0:00:48]} 18. Qd5 {[%emt 0:08:53]} Rb5 {[%emt 0:00:11]} 19. Qd3 {[%emt 0:01:46]} Rb6 {[%emt 0:00:11]} 20. Nc4 {[%emt 0:06:08]} Rxc6 {[%emt 0:01:58]} 21. Rfe1 {[%emt 0:05:34]} d5 {[%emt 0:01:38]} 22. Qxd5 {[%emt 0:01:18]} Re8 {[%emt 0:04:59]} 23. Qxe6 {[%emt 0:02:07]} Rexe6 {[%emt 0:00:34]} 24. g5 {[%emt 0:06:39]} Be7 {[%emt 0:01:01]} 25. Nfxe5 {[%emt 0:01:04]} Rc5 {[%emt 0:03:22]} 26. Nxg6 {[%emt 0:01:12]} Rxg6 {[%emt 0:00:31]} 27. h4 {[%emt 0:00:36]} f6 {[%emt 0:00:20]} 28. f4 {[%emt 0:01:20]} fxg5 {[%emt 0:00:12]} 29. hxg5 {[%emt 0:01:02]} h6 {[%emt 0:00:06]} 30. Ne5 {[%emt 0:00:46]} Re6 {[%emt 0:02:32]} 31. gxh6 {[%emt 1:32:51]} gxh6 {[%emt 1:30:11]} 32. Nc4 {[%emt 0:00:43]} Rg6+ {[%emt 0:00:54]} 33. Kf1 {[%emt 0:01:31]} Bh4 {[%emt 0:00:32]} 34. Re2 {[%emt 0:01:06]} Rh5 {[%emt 0:02:25]} 35. Rg2 {[%emt 0:00:30]} Bg3 {[%emt 0:02:37]} 36. Ke2 {[%emt 0:00:44]} Kh7 {[%emt 0:00:17]} 37. Rag1 {[%emt 0:02:03]} Rh2 {[%emt 0:00:58]} 38. Rxh2 {[%emt 0:02:53]} Bxh2 {[%emt 0:00:13]} 39. Rxg6 {[%emt 0:00:13]} Kxg6 {[%emt 0:00:12]} 40. f5+ {[%emt 0:00:11]} Kf6 {[%emt 0:00:21]} 41. Kf3 {[%emt 0:01:29]} c5 {[%emt 0:01:38]} 42. Kg4 {[%emt 0:01:16]} Bc7 {[%emt 0:01:07]} 43. Kh5 {[%emt 0:01:19]} Bf4 {[%emt 0:00:11]} 44. Kg4 {[%emt 0:02:06]} Bc1 {[%emt 0:00:40]} 45. e5+ {[%emt 0:00:21]} Kf7 {[%emt 0:00:43]} 46. Nd6+ {[%emt 0:00:45]} Ke7 {[%emt 0:00:24]} 47. Nb7 {[%emt 0:01:16]} Be3 {[%emt 0:00:21]} 48. Nd6 {[%emt 0:03:26]} Bd2 {[%emt 0:02:16]} 49. c4 {[%emt 0:00:37]} Bc3 {[%emt 0:00:16]} 50. Ne4 {[%emt 0:03:00]} Bxe5 {[%emt 0:00:52]} 51. Nxc5 {[%emt 0:00:13]} a5 {[%emt 0:01:19]} 52. Ne4 {[%emt 0:01:00]} Kf7 {[%emt 0:00:36]} 53. c5 {[%emt 0:05:05]} Ke7 {[%emt 0:00:10]} 54. c6 {[%emt 0:00:50]} Bc7 {[%emt 0:00:28]} 55. Kh5 {[%emt 0:03:17]} Ke8 {[%emt 0:02:10]} 56. Kxh6 {[%emt 0:00:52]} Ke7 {[%emt 0:00:07]} 57. Kg7 {[%emt 0:00:27]} Ke8 {[%emt 0:00:47]} 58. f6 {[%emt 0:01:23]} Bd8 {[%emt 0:00:27]} 59. f7+ {[%emt 0:00:17]} Ke7 {[%emt 0:00:10]} 60. f8=Q+ {[%emt 0:00:16]} Ke6 {[%emt 0:00:18]} 61. Qxd8 {[%emt 1:31:02]} Ke5 {[%emt 1:30:10]} 62. Qe7+ {[%emt 0:01:02]} Kf5 {[%emt 0:00:18]} 63. Nd2 {[%emt 0:00:46]} Kg4 {[%emt 0:00:29]} 64. Qf6 {[%emt 0:00:56]} Kg3 {[%emt 0:00:00]} 65. Qf3+ {[%emt 0:00:00]} Kh2 {[%emt 0:00:03]} 66. Kh6 {[%emt 0:00:19]} Kg1 {[%emt 0:00:13]} 67. Kg5 {[%emt 0:00:12]} Kh2 {[%emt 0:00:07]} 68. Kg4 {[%emt 0:00:11]} Kg1 {[%emt 0:00:10]} 69. Kg3 {[%emt 0:00:12]} a4 {[%emt 0:00:12]} 70. Qg2# {[%emt 0:00:12]} 1-0

[Event "GER-chT Youth Countries 2020"]
[Site "Berlin"]
[Date "2020.10.02"]
[Round "4"]
[White "Zimmer, Tim"]
[Black "Schiewe, Nadin"]
[Result "0-1"]
[ECO "B01"]
[WhiteElo "1025"]
[BlackElo "1660"]
[Annotator "NA"]
[PlyCount "92"]
[EventDate "2020.09.30"]
[EventType "team-tourn"]
[EventRounds "7"]
[EventCountry "GER"]
[SourceTitle "playchess.com"]
[Source "ChessBase"]
[SourceQuality "1"]
[TimeControl "30/5400+30:0"]

1. e4 {[%emt 0:00:00]} d5 {[%emt 0:00:00]} 2. exd5 {[%emt 0:00:00]} Qxd5 {[%emt 0:00:00]} 3. Nc3 {[%emt 0:00:22]} Qa5 {[%emt 0:00:00]} 4. Bc4 {[%emt 0:00:39]} Nf6 {[%emt 0:00:12]} 5. d3 {[%emt 0:00:22]} c6 {[%emt 0:00:19]} 6. Bd2 {[%emt 0:00:34]} Qc7 {[%emt 0:00:16]} 7. Qe2 {[%emt 0:01:00]} Bf5 {[%emt 0:00:30]} 8. O-O-O {[%emt 0:02:35]} Nbd7 {[%emt 0:03:37]} 9. Nf3 {[%emt 0:05:01]} e6 {[%emt 0:01:16]} 10. Nh4 {[%emt 0:09:01]} Bg6 {[%emt 0:00:27]} 11. Nxg6 {[%emt 0:00:16]} hxg6 {[%emt 0:00:08]} 12. Rde1 {[%emt 0:00:37]} O-O-O {[%emt 0:02:11]} 13. Be3 {[%emt 0:05:44]} a5 {[%emt 0:03:53]} 14. a4 {[%emt 0:11:49]} Bb4 {[%emt 0:02:59]} 15. f3 {[%emt 0:07:45]} Rxh2 {[%emt 0:04:47]} 16. Rxh2 {[%emt 0:11:23]} Qxh2 {[%emt 0:00:10]} 17. Qf2 {[%emt 0:01:07]} Rh8 {[%emt 0:05:22]} 18. Bd2 {[%emt 0:10:47]} Bd6 {[%emt 0:08:09]} 19. Qe2 {[%emt 0:05:31]} Qg3 {[%emt 0:05:00]} 20. Be3 {[%emt 0:05:19]} Bb4 {[%emt 0:04:21]} 21. Qd2 {[%emt 0:02:17]} Nd5 {[%emt 0:10:39]} 22. Bxd5 {[%emt 0:01:05]} cxd5 {[%emt 0:00:52]} 23. Bf4 {[%emt 0:06:22]} Qh4 {[%emt 0:00:12]} 24. Bg5 {[%emt 0:01:52]} Qh5 {[%emt 0:00:48]} 25. Be3 {[%emt 0:04:42]} e5 {[%emt 0:10:36]} 26. d4 {[%emt 0:00:48]} e4 27. fxe4 dxe4 {[%emt 0:00:56]} 28. d5 {[%emt 0:01:33]} Nf6 {[%emt 0:07:12]} 29. Qd4 {[%emt 0:00:50]} Rd8 {[%emt 0:12:11]} 30. Bf4 {[%emt 0:01:13]} Bd6 {[%emt 0:04:07]} 31. Bxd6 {[%emt 1:31:09]} Rxd6 {[%emt 1:30:36]} 32. Nxe4 {[%emt 0:00:25]} Nxe4 {[%emt 0:01:35]} 33. Qxe4 {[%emt 0:00:26]} Qxd5 34. Qe8+ {[%emt 0:03:12]} Rd8 {[%emt 0:01:03]} 35. Qe2 {[%emt 0:00:25]} Qa2 {[%emt 0:01:15]} 36. c3 {[%emt 0:01:11]} Qa1+ {[%emt 0:00:16]} 37. Kc2 {[%emt 0:00:07]} Qxa4+ {[%emt 0:00:08]} 38. Kc1 {[%emt 0:00:04]} Qf4+ {[%emt 0:01:44]} 39. Kb1 {[%emt 0:00:30]} Rd2 {[%emt 0:02:36]} 40. Qe8+ {[%emt 0:00:20]} Kc7 {[%emt 0:00:42]} 41. Qe7+ {[%emt 0:00:48]} Kb6 {[%emt 0:00:14]} 42. Re4 {[%emt 0:01:12]} Qf1+ {[%emt 0:04:41]} 43. Ka2 {[%emt 0:00:16]} Qxg2 {[%emt 0:02:01]} 44. Ka3 {[%emt 0:00:29]} Qf1 {[%emt 0:00:00]} 45. Re1 {[%emt 0:00:00]} Qb5 {[%emt 0:00:00]} 46. Qe3+ {[%emt 0:00:00]} Qc5+ {[%emt 0:00:00]} 0-1

[Event "GER-chT Youth Countries 2020"]
[Site "Berlin"]
[Date "2020.10.02"]
[Round "4"]
[White "Heuberger, Sandra"]
[Black "Marrufo, Emilia"]
[Result "1-0"]
[ECO "D31"]
[WhiteElo "1004"]
[BlackElo "796"]
[Annotator "NA"]
[PlyCount "87"]
[EventDate "2020.09.30"]
[EventType "team-tourn"]
[EventRounds "7"]
[EventCountry "GER"]
[SourceTitle "playchess.com"]
[Source "ChessBase"]
[SourceQuality "1"]
[TimeControl "30/5400+30:0"]

1. d4 {[%emt 0:00:00]} d5 {[%emt 0:00:00]} 2. c4 {[%emt 0:00:00]} e6 {[%emt 0:00:00]} 3. Nc3 {[%emt 0:00:28]} c6 {[%emt 0:00:11]} 4. Nf3 {[%emt 0:02:25]} dxc4 {[%emt 0:01:42]} 5. e4 {[%emt 0:03:43]} b5 {[%emt 0:00:27]} 6. Be2 {[%emt 0:01:58]} Nf6 {[%emt 0:01:52]} 7. Bg5 {[%emt 0:02:09]} Nbd7 {[%emt 0:01:50]} 8. O-O {[%emt 0:02:28]} Bd6 {[%emt 0:00:21]} 9. e5 {[%emt 0:06:31]} h6 {[%emt 0:01:47]} 10. Bxf6 {[%emt 0:04:02]} Nxf6 {[%emt 0:01:33]} 11. exd6 {[%emt 0:01:20]} Qxd6 {[%emt 0:00:18]} 12. Re1 {[%emt 0:04:02]} O-O {[%emt 0:00:53]} 13. Ne5 {[%emt 0:02:07]} Nd7 {[%emt 0:03:16]} 14. Bf3 {[%emt 0:02:58]} Bb7 {[%emt 0:02:23]} 15. Rc1 {[%emt 0:01:18]} Nb8 {[%emt 0:02:16]} 16. Qd2 {[%emt 0:08:16]} Qe7 {[%emt 0:02:08]} 17. Ne4 {[%emt 0:02:07]} Rd8 {[%emt 0:02:03]} 18. Ng3 {[%emt 0:03:35]} Rd6 {[%emt 0:03:14]} 19. Ne4 {[%emt 0:00:50]} Rd5 {[%emt 0:00:39]} 20. Qe3 {[%emt 0:01:16]} Na6 {[%emt 0:02:22]} 21. Ng3 {[%emt 0:04:15]} Rd6 {[%emt 0:00:58]} 22. Rcd1 {[%emt 0:00:44]} Rad8 {[%emt 0:02:49]} 23. Be4 {[%emt 0:04:22]} c5 {[%emt 0:02:22]} 24. Bxb7 {[%emt 0:01:47]} Qxb7 {[%emt 0:00:18]} 25. Ne4 {[%emt 0:08:14]} Rxd4 {[%emt 0:01:35]} 26. Rxd4 {[%emt 0:01:53]} Rxd4 {[%emt 0:00:30]} 27. Nxc5 {[%emt 0:09:00]} Qd5 {[%emt 0:00:44]} 28. Nxa6 {[%emt 0:03:09]} Rd1 {[%emt 0:00:29]} 29. Nf3 {[%emt 0:01:35]} Rd3 {[%emt 0:02:08]} 30. Qxa7 {[%emt 0:02:39]} Qd8 {[%emt 0:01:49]} 31. Nb4 {[%emt 1:31:39]} Rd7 {[%emt 1:30:35]} 32. Qe3 {[%emt 0:00:13]} Qa5 {[%emt 0:00:51]} 33. a3 {[%emt 0:00:12]} Qd8 {[%emt 0:00:41]} 34. Nc6 {[%emt 0:01:03]} Qc8 {[%emt 0:01:36]} 35. Nce5 {[%emt 0:00:23]} Rd5 {[%emt 0:01:30]} 36. Qf4 {[%emt 0:01:54]} f6 {[%emt 0:01:35]} 37. Ng6 {[%emt 0:01:01]} Rg5 {[%emt 0:00:45]} 38. Ne7+ {[%emt 0:00:11]} Kf8 {[%emt 0:00:54]} 39. Nxc8 {[%emt 0:00:09]} e5 {[%emt 0:00:13]} 40. Qe4 {[%emt 0:00:25]} h5 {[%emt 0:01:05]} 41. Nxg5 {[%emt 0:00:09]} fxg5 {[%emt 0:00:23]} 42. Qf5+ {[%emt 0:00:21]} Kg8 {[%emt 0:00:09]} 43. Rxe5 {[%emt 0:00:10]} Kh8 {[%emt 0:00:29]} 44. Re8# {[%emt 0:00:24]} 1-0

[Event "GER-chT Youth Countries 2020"]
[Site "Berlin"]
[Date "2020.10.02"]
[Round "5"]
[White "Vogel, Roven"]
[Black "Arndt, Magnus"]
[Result "1/2-1/2"]
[ECO "E10"]
[WhiteElo "2456"]
[BlackElo "2298"]
[Annotator "ChessBase"]
[PlyCount "48"]
[EventDate "2020.09.30"]
[EventType "team-tourn"]
[EventRounds "7"]
[EventCountry "GER"]
[SourceTitle "playchess.com"]
[Source "ChessBase"]
[SourceQuality "1"]
[TimeControl "30/5400+30:0"]

1. d4 {[%emt 0:00:00]} Nf6 {[%emt 0:00:00]} 2. c4 {[%emt 0:00:00]} e6 {[%emt 0:00:00]} 3. Nf3 {[%emt 0:00:00]} a6 {[%emt 0:00:07]} 4. Nc3 {[%emt 0:00:49]} d5 {[%emt 0:00:27]} 5. cxd5 {[%emt 0:00:52]} exd5 {[%emt 0:00:02]} 6. Bg5 {[%emt 0:00:11]} Be6 {[%emt 0:00:36]} 7. e3 {[%emt 0:01:45]} Nbd7 {[%emt 0:00:12]} 8. Bd3 {[%emt 0:00:21]} Bd6 {[%emt 0:00:23]} 9. O-O {[%emt 0:00:22]} O-O {[%emt 0:00:30]} 10. e4 {[%emt 0:03:42]} dxe4 {[%emt 0:00:59]} 11. Bxe4 {[%emt 0:00:27]} Qb8 {[%emt 0:22:08]} 12. Bc2 {[%emt 0:11:14]} c6 {[%emt 0:01:23]} 13. h3 {[%emt 0:06:38]} Re8 {[%emt 0:03:23]} 14. Bxf6 {[%emt 0:09:08]} Nxf6 {[%emt 0:00:34]} 15. Ng5 {[%emt 0:00:05]} Bh2+ {[%emt 0:30:07]} 16. Kh1 {[%emt 0:00:10]} Bf4 {[%emt 0:00:08]} 17. Nxe6 {[%emt 0:00:40]} Rxe6 {[%emt 0:00:11]} 18. Bb3 {[%emt 0:00:35]} Re7 {[%emt 0:05:45]} 19. Qf3 {[%emt 0:02:16]} Qc7 {[%emt 0:01:36]} 20. g3 {[%emt 0:01:29]} Bh6 {[%emt 0:01:31]} 21. Rad1 {[%emt 0:01:57]} Rae8 {[%emt 0:01:35]} 22. d5 {[%emt 0:07:08]} cxd5 {[%emt 0:00:36]} 23. Nxd5 {[%emt 0:01:15]} Nxd5 {[%emt 0:00:09]} 24. Rxd5 {[%emt 0:00:06]} g6 {[%emt 0:01:52]} 1/2-1/2

[Event "GER-chT Youth Countries 2020"]
[Site "Berlin"]
[Date "2020.10.02"]
[Round "5"]
[White "Roseneck, Jonas"]
[Black "Pubantz, Jan"]
[Result "1-0"]
[ECO "B12"]
[WhiteElo "2417"]
[BlackElo "2295"]
[Annotator "ChessBase"]
[PlyCount "56"]
[EventDate "2020.09.30"]
[EventType "team-tourn"]
[EventRounds "7"]
[EventCountry "GER"]
[SourceTitle "playchess.com"]
[Source "ChessBase"]
[SourceQuality "1"]
[TimeControl "30/5400+30:0"]

1. e4 {[%emt 0:00:00]} c6 {[%emt 0:00:00]} 2. d4 {[%emt 0:00:00]} d5 {[%emt 0:00:00]} 3. e5 {[%emt 0:00:00]} Bf5 {[%emt 0:00:00]} 4. h4 {[%emt 0:00:00]} Qc7 {[%emt 0:00:00]} 5. c4 {[%emt 0:00:00]} e6 6. Nc3 {[%emt 0:01:18]} h6 {[%emt 0:00:35]} 7. Nge2 {[%emt 0:03:56]} Ne7 {[%emt 0:01:13]} 8. Ng3 {[%emt 0:01:23]} Bh7 {[%emt 0:00:13]} 9. b3 {[%emt 0:05:15]} Nd7 {[%emt 0:18:45]} 10. Bd3 {[%emt 0:10:36]} Bxd3 {[%emt 0:19:38]} 11. Qxd3 {[%emt 0:00:07]} dxc4 {[%emt 0:00:12]} 12. bxc4 {[%emt 0:03:30]} Rd8 {[%emt 0:00:31]} 13. Qe2 {[%emt 0:06:43]} Ng6 14. Nce4 {[%emt 0:27:57]} Bb4+ {[%emt 0:14:53]} 15. Kf1 {[%emt 0:00:05]} c5 {[%emt 0:22:40]} 16. h5 {[%emt 0:09:55]} cxd4 {[%emt 0:01:38]} 17. Nd6+ {[%emt 0:03:37]} Bxd6 {[%emt 0:00:57]} 18. exd6 {[%emt 0:00:01]} Qxd6 {[%emt 0:00:49]} 19. hxg6 {[%emt 0:00:06]} O-O {[%emt 0:02:25]} 20. Ne4 {[%emt 0:00:40]} Qe5 21. Ba3 {[%emt 0:03:57]} d3 {[%emt 0:06:31]} 22. Qe1 {[%emt 0:00:04]} f5 23. Bxf8 {[%emt 0:01:34]} Nxf8 {[%emt 0:04:25]} 24. Nd2 Qd6 {[%emt 0:01:22]} 25. Rb1 {[%emt 0:05:59]} b6 26. Rh3 {[%emt 0:01:35]} Nxg6 {[%emt 0:01:03]} 27. Rb3 {[%emt 0:00:20]} Nf4 {[%emt 0:01:15]} 28. Rf3 a5 {[%emt 0:04:20]} 1-0

[Event "GER-chT Youth Countries 2020"]
[Site "Berlin"]
[Date "2020.10.02"]
[Round "5"]
[White "Nothnagel, Marian Can"]
[Black "Muckle, Julius"]
[Result "1-0"]
[ECO "C00"]
[WhiteElo "2355"]
[BlackElo "2427"]
[Annotator "ChessBase"]
[PlyCount "74"]
[EventDate "2020.09.30"]
[EventType "team-tourn"]
[EventRounds "7"]
[EventCountry "GER"]
[SourceTitle "playchess.com"]
[Source "ChessBase"]
[SourceQuality "1"]
[TimeControl "30/5400+30:0"]

1. e4 e6 {[%emt 0:00:00]} 2. d3 {[%emt 0:00:00]} d5 {[%emt 0:00:03]} 3. Nd2 {[%emt 0:00:05]} c5 {[%emt 0:00:30]} 4. Ngf3 {[%emt 0:00:30]} Nc6 {[%emt 0:00:30]} 5. g3 {[%emt 0:00:30]} g6 {[%emt 0:00:30]} 6. Bg2 {[%emt 0:00:30]} Bg7 {[%emt 0:00:30]} 7. O-O {[%emt 0:00:30]} Nge7 {[%emt 0:00:30]} 8. Re1 {[%emt 0:00:30]} O-O {[%emt 0:00:30]} 9. c3 {[%emt 0:00:30]} b5 {[%emt 0:00:30]} 10. e5 {[%emt 0:00:00]} Qc7 {[%emt 0:06:03]} 11. Qe2 {[%emt 0:08:39]} b4 {[%emt 0:03:08]} 12. Nb3 {[%emt 0:03:38]} c4 {[%emt 0:00:20]} 13. dxc4 {[%emt 0:02:37]} Ba6 {[%emt 0:00:41]} 14. Bf4 {[%emt 0:00:06]} bxc3 {[%emt 0:07:35]} 15. bxc3 {[%emt 0:03:45]} Na5 {[%emt 0:07:50]} 16. Nfd4 {[%emt 0:22:24]} Rac8 {[%emt 0:05:17]} 17. Qg4 {[%emt 0:03:07]} Nxc4 {[%emt 0:33:42]} 18. Bf1 {[%emt 0:13:54]} Qb6 {[%emt 0:04:35]} 19. Qe2 {[%emt 0:01:06]} Nc6 {[%emt 0:01:29]} 20. Nxc6 {[%emt 0:00:43]} Rxc6 {[%emt 0:00:52]} 21. Nd4 {[%emt 0:01:14]} Rc7 {[%emt 0:01:09]} 22. h4 {[%emt 0:03:52]} Qa5 {[%emt 0:01:48]} 23. Rac1 Rb8 24. Nb3 {[%emt 0:01:29]} Qa3 {[%emt 0:00:59]} 25. h5 {[%emt 0:00:36]} Rb6 {[%emt 0:01:36]} 26. hxg6 {[%emt 0:08:10]} hxg6 {[%emt 0:07:15]} 27. Qg4 {[%emt 0:00:12]} Nb2 {[%emt 0:01:12]} 28. Be3 {[%emt 0:09:16]} Rb8 29. Bc5 {[%emt 0:00:04]} Rxc5 {[%emt 0:01:34]} 30. Nxc5 {[%emt 0:00:03]} Bxf1 {[%emt 0:00:10]} 31. Nxe6 {[%emt 1:32:43]} Bd3 {[%emt 1:38:28]} 32. Ng5 {[%emt 0:00:13]} Bf5 {[%emt 0:03:38]} 33. Qh4 {[%emt 0:04:32]} Rb6 {[%emt 0:00:36]} 34. e6 {[%emt 0:00:12]} fxe6 {[%emt 0:00:26]} 35. g4 {[%emt 0:00:27]} Qa4 {[%emt 0:01:15]} 36. c4 {[%emt 0:01:36]} Nd3 {[%emt 0:02:05]} 37. gxf5 Nxe1 1-0